[Event "85th Tata Steel Masters 2023"]
[White "Erigaisi Arjun"]
[Black "Abdusattorov,Nodirbek"]
[Site "Wijk aan Zee"]
[Round "7.1"]
[Annotator "TA"]
[Result "0-1"]
[Date "2023.01.21"]
[WhiteElo "2722"]
[BlackElo "2713"]
[PlyCount "86"]
[TimeControl "60"]

{[%evp 9,86,20,18,5,19,16,21,13,22,29,17,19,18,15,27,17,32,22,22,12,44,47,39,42,35,22,24,0,0,0,0,0,0,-74,-56,-56,-64,-70,-71,-63,-76,-61,-31,-113,-120,-121,-125,-124,-122,-116,-93,-92,-61,-195,-189,-216,-223,-320,-305,-291,-253,-248,-248,-474,-454,-626,-604,-2912,-2360,-29985,-29986,-29986,-29987,-29987,-29988,-29988,-29989,-29989,-29990]} 1. e4 {[%emt 0:0:30]} e5 {[%emt 0:0:13]} 2. Nf3 {[%emt 0:0:6]} Nf6 {[%emt 0:0:8]} 3. d4 {[%emt 0:0:37]} Nxe4 {[%emt 0:0:16]} 4. dxe5 {[%emt 0:0:6]} d5 {[%emt 0:0:29]} 5. Nbd2 {[%emt 0:0:6]} Nxd2 {[%emt 0:1:20]} 6. Bxd2 {[%emt 0:0:6] C43: Petroff Defence: 3 d4.} Be7 {[%emt 0:0:6]} 7. Bd3 {[%emt 0:2:57]} c5 {[%emt 0:0:23]} 8. c3 {[%emt 0:0:15] The position is equal.} Nc6 {[%emt 0:0:29]} 9. O-O {[%emt 0:0:18]} Bg4 {[%emt 0:0:6]} 10. Re1 {[%emt 0:2:53]} O-O {[%emt 0:1:14]} 11. h3 {[%emt 0:5:12]} Bh5 {[%emt 0:4:24] [#]} 12. Bf5 $146 {[%emt 0:8:15]} ({Predecessor:} 12. Bf4 Qd7 13. Qe2 Nd8 14. g4 Ne6 15. Bg3 Bg6 16. Rad1 Rad8 17. Bf5 Qa4 18. b3 {1-0 Bokros,A (2458)-Kantorik,M (2331) SVK-chT 1213 2012 (4.2)} )Kh8 {[%emt 0:9:16]} 13. Qe2 {[%emt 0:17:39]} Qb6 {[%emt 0:6:24]} 14. Bf4 {[%emt 0:10:57]} Rae8 {[%emt 0:9:45]} 15. Rad1 {[%emt 0:2:25]} d4 {[%emt 0:9:2]} 16. g4 {[%emt 0:0:50]} Bg6 {[%emt 0:0:6]} 17. Qc2 {[%emt 0:8:45]} Rd8 {[%emt 0:4:29]} 18. h4 {[%emt 0:8:27]} Qa6 {[%emt 0:10:11]} 19. cxd4 {[%emt 0:13:3]} cxd4 {[%emt 0:2:55][%cal Yc5d4,Yd4d3,Yd3d2][%mdl 32]} 20. Qb3 {[%emt 0:3:8]} d3 {[%emt 0:3:44]} 21. h5 {[%emt 0:3:12]} (21. Re3 $11 {keeps the balance.} )Bxf5 $17 {[%emt 0:8:18]} 22. gxf5 {[%emt 0:0:5]} Nd4 {[%emt 0:0:10]} 23. Nxd4 {[%emt 0:0:6]} Rxd4 {[%emt 0:0:3]} 24. Bg3 {[%emt 0:0:5][%cal Yh5h6]} d2 {[%emt 0:0:55]} 25. Re3 {[%emt 0:2:9]} Qh6 {[%emt 0:14:45] Black is more active.} 26. Qxb7 {[%emt 0:1:29]} (26. Rd3 $15 Rxd3 27. Qxd3 )Bg5 $36 {[%emt 0:3:40][%mdl 2048] Black is on the roll.} 27. Rc3 {[%emt 0:8:26]} Qxh5 {[%emt 0:0:12]} 28. Qf3 {[%emt 0:0:9]} Qh3 {[%emt 0:1:54]} 29. Bh2 {[%emt 0:1:22]} Rg4+ {[%emt 0:0:35]} 30. Bg3 {[%emt 0:0:5]} h6 {[%emt 0:6:57]} 31. Qg2 {[%emt 0:1:49] [#] This move loses the game for White.} ({Only move:} 31. Qh1 $1 $15 Qxh1+ 32. Kxh1 )Qh5 $1 $19 {[%emt 0:0:22][%cal Yg4g3] Hoping for ...Rxg3!} 32. f3 {[%emt 0:0:31]} Rd4 {[%emt 0:1:35]} 33. Qh2 {[%emt 0:3:5] [#]} (33. Bf2 {keeps fighting.} Rd5 34. Qh2 Qxh2+ 35. Kxh2 Rxe5 36. Kg3 Rxf5 37. Rc5 )Bh4 $1 {[%emt 0:1:6][%cal Yf8e8]} ({Weaker is} 33... Qxh2+ 34. Bxh2 Kg8 35. Kf2 $15 )34. Kf1 {[%emt 0:1:11]} Rfd8 {[%emt 0:3:26] Threatens to win with ...Qg5.} 35. Bf2 {[%emt 0:0:48]} Re4 {[%emt 0:0:26][%mdl 64] Pin} 36. f6 $2 {[%emt 0:4:24]} (36. Qh3 {is the only way for White.} Rd5 37. e6 fxe6 38. f6 )gxf6 {[%emt 0:0:33]} 37. Qh3 {[%emt 0:0:48]} Rf4 {[%emt 0:3:38]} 38. Bxa7 {[%emt 0:1:38]} Qxe5 {[%emt 0:0:43] ( -> ...Qe1+)} 39. Be3 {[%emt 0:0:40]} Qb5+ {[%emt 0:0:7] Black mates.} 40. Kg1 {[%emt 0:0:6]} Qe2 {[%emt 0:0:49]} 41. Qf1 {[%emt 0:50:48]} Rg8+ {[%emt 0:50:53]} ({And not} 41... Qxf3 42. Qxf3 Rxf3 43. Rxd2 Rg8+ 44. Rg2 $11 )42. Kh1 {[%emt 0:0:6]} Qxf1+ {[%emt 0:0:58]} ({Not} 42... Qxf3+ 43. Qxf3 Rxf3 44. Bxd2 $15 )43. Rxf1 {[%emt 0:0:5] [#]} Rxf3 $3 {[%emt 0:0:29][%mdl 576] Promotion. A superb game by Abdusattorov.   Weighted Error Value: White=0.59/Black=0.05 (flawless)} 0-1

[Event "85th Tata Steel Masters 2023"]
[White "Aronian,Levon"]
[Black "Giri,Anish"]
[Site "Wijk aan Zee"]
[Round "7.2"]
[Annotator "TA"]
[Result "1/2-1/2"]
[Date "2023.01.21"]
[WhiteElo "2735"]
[BlackElo "2764"]
[PlyCount "41"]
[TimeControl "60"]

{[%evp 10,41,29,10,16,0,0,0,0,0,15,0,0,0,0,0,7,0,8,0,27,19,39,0,18,9,8,7,0,0,0,10,7,0]} 1. e4 {[%emt 0:0:4]} e5 {[%emt 0:0:4]} 2. Nf3 {[%emt 0:0:5]} Nc6 {[%emt 0:0:3]} 3. Bc4 {[%emt 0:0:6]} Nf6 {[%emt 0:0:5]} 4. d3 {[%emt 0:0:4]} Bc5 {[%emt 0:0:4]} 5. O-O {[%emt 0:0:5]} d6 {[%emt 0:0:16]} 6. a4 {[%emt 0:0:8]} a5 {[%emt 0:4:29] C50: Hungarian Defence and Giuoco Pianissimo.} 7. Be3 {[%emt 0:0:7]} Bxe3 {[%emt 0:1:25]} 8. fxe3 {[%emt 0:0:10]} O-O {[%emt 0:0:27]} 9. Nbd2 {[%emt 0:0:6]} Be6 {[%emt 0:11:11] [#]} 10. h3 $146 {[%emt 0:0:14]} ({Predecessor:} 10. Bxe6 fxe6 11. d4 Qe8 12. c3 Qg6 13. Qb3 Nxe4 14. Nxe4 Qxe4 15. Qxe6+ Kh8 16. Rae1 {½-½ Movsesian,S (2654)-Michalik,P (2578) CZE-chT 1920 2019 (4.5)} )Bxc4 {[%emt 0:2:21]} 11. Nxc4 {[%emt 0:0:3]} Qe7 {[%emt 0:2:25]} 12. Rf2 {[%emt 0:10:53]} b6 {[%emt 0:1:8]} 13. Nfd2 {[%emt 0:3:4][%cal Yf3d2,Yd2b1,Yb1c3][%mdl 32]} Nb8 {[%emt 0:5:47]} 14. Nb1 {[%emt 0:5:28]} Nbd7 {[%emt 0:2:56]} 15. Nc3 {[%emt 0:0:7]} c6 {[%emt 0:0:12]} 16. d4 {[%emt 0:4:48]} d5 {[%emt 0:6:26] The position is equal.} 17. exd5 {[%emt 0:1:22]} Nxd5 {[%emt 0:0:49]} 18. Nxd5 {[%emt 0:4:55]} cxd5 {[%emt 0:0:6]} 19. Nxe5 {[%emt 0:0:2]} Nxe5 {[%emt 0:0:6]} 20. dxe5 {[%emt 0:0:3]} Qxe5 {[%emt 0:0:4]} 21. Qd4 {[%emt 0:0:6] An uneventful encounter.   Weighted Error Value: White=0.09 (flawless) /Black=0.08 (flawless)} 1/2-1/2

[Event "85th Tata Steel Masters 2023"]
[White "Maghsoodloo,Parham"]
[Black "Caruana,Fabiano"]
[Site "Wijk aan Zee"]
[Round "7.3"]
[Annotator "RC"]
[Result "1/2-1/2"]
[Date "2023.01.21"]
[WhiteElo "2719"]
[BlackElo "2766"]
[PlyCount "212"]
[TimeControl "60"]

1. d4 {[%emt 0:0:3]} Nf6 {[%emt 0:0:5]} 2. c4 {[%emt 0:0:5]} e6 {[%emt 0:0:3]} 3. Nf3 {[%emt 0:0:5]} d5 {[%emt 0:0:5]} 4. Nc3 {[%emt 0:0:4]} Bb4 {[%emt 0:0:4]} 5. Bg5 {[%emt 0:0:17]} h6 {[%emt 0:0:7]} 6. Bxf6 {[%emt 0:0:6]} Qxf6 {[%emt 0:0:5]} 7. Qa4+ {[%emt 0:0:8]} Nc6 {[%emt 0:0:6]} 8. e3 {[%emt 0:0:49]} O-O {[%emt 0:0:7]} 9. Be2 {[%emt 0:0:14]} Qe7 {[%emt 0:0:42]} 10. cxd5 {[%emt 0:7:23]} exd5 {[%emt 0:0:6]} 11. O-O {[%emt 0:0:5]} Be6 {[%emt 0:5:41]} 12. Rac1 {[%emt 0:1:55]} Rfd8 {[%emt 0:13:57]} 13. a3 {[%emt 0:10:27]} Bd6 {[%emt 0:1:1]} 14. Nb5 {[%emt 0:0:41]} a6 {[%emt 0:5:5]} 15. Nxd6 {[%emt 0:0:46]} Qxd6 {[%emt 0:0:14]} 16. Qb3 {[%emt 0:8:47]} Rdb8 {[%emt 0:8:59]} 17. Ne1 {[%emt 0:5:55]} Ne7 {[%emt 0:11:33]} 18. Nd3 {[%emt 0:0:51]} c6 {[%emt 0:0:13]} 19. Nc5 {[%emt 0:1:5]} Bf5 {[%emt 0:0:38]} 20. f3 {[%emt 0:6:42]} a5 {[%emt 0:8:4]} 21. Qc3 {[%emt 0:3:29]} b6 {[%emt 0:3:4]} 22. Na4 {[%emt 0:0:23]} Ra7 {[%emt 0:4:30]} 23. Rfe1 {[%emt 0:2:43]} Rc7 {[%emt 0:3:16]} 24. Bf1 {[%emt 0:6:16]} Qd7 {[%emt 0:10:5]} 25. e4 {[%emt 0:1:41]} Be6 {[%emt 0:0:6]} 26. b3 {[%emt 0:2:22]} Ng6 {[%emt 0:4:41]} 27. Rcd1 {[%emt 0:4:52]} Qe7 {[%emt 0:2:6]} 28. Qb2 {[%emt 0:2:12]} dxe4 {[%emt 0:4:15]} 29. fxe4 {[%emt 0:0:10]} Rd7 {[%emt 0:0:13]} 30. b4 {[%emt 0:2:57]} axb4 {[%emt 0:1:5]} 31. axb4 {[%emt 0:0:5]} Qd8 {[%emt 0:9:55]} 32. Qc3 {[%emt 0:7:14]} Ra8 {[%emt 0:1:37]} 33. Nb2 {[%emt 0:0:38]} b5 {[%emt 0:0:54]} 34. Qxc6 {[%emt 0:17:9]} Rxd4 {[%emt 0:3:56]} 35. Qxb5 {[%emt 0:0:4]} Rc8 {[%emt 0:4:17]} 36. Qa5 {[%emt 0:2:5]} Rxd1 {[%emt 0:3:54]} 37. Rxd1 {[%emt 0:0:2]} Qf6 {[%emt 0:0:7]} 38. Nd3 {[%emt 0:2:22]} Rc2 {[%emt 0:0:12]} 39. Qb6 {[%emt 0:2:11]} Kh7 {[%emt 0:1:23]} 40. b5 {[%emt 0:3:5]} Qc3 {[%emt 0:3:9]} 41. Ne1 {[%emt 0:52:7]} Rb2 {[%emt 0:3:5]} 42. Qd4 {[%emt 0:0:0]} Qb3 {[%emt 0:6:54]} 43. e5 {[%emt 0:0:0]} Nxe5 {[%emt 0:15:29]} 44. Qxe5 {[%emt 0:0:0]} Qxd1 {[%emt 0:0:6]} 45. Qxb2 {[%emt 0:0:0]} Qxe1 {[%emt 0:0:6]} 46. b6 {[%emt 0:0:0]} Bd5 {[%emt 0:3:31]} 47. h3 {[%emt 0:0:0]} f5 {[%emt 0:8:20]} 48. Qf2 {[%emt 0:0:0]} Qb1 {[%emt 0:0:28]} 49. Kh2 {[%emt 0:0:0]} Be4 {[%emt 0:0:30]} 50. Bc4 {[%emt 0:0:0]} Qd1 {[%emt 0:1:46]} 51. Bf1 {[%emt 0:0:0]} Qb1 {[%emt 0:0:32]} 52. h4 {[%emt 0:0:0]} Qb4 {[%emt 0:2:28]} 53. h5 {[%emt 0:0:0]} Qd6+ {[%emt 0:1:22]} 54. Kh3 {[%emt 0:1:0]} f4 {[%emt 0:4:58]} 55. Kg4 {[%emt 0:7:47]} Bb1 {[%emt 0:3:45]} 56. Qb2 {[%emt 0:5:32]} Qe6+ {[%emt 0:3:44]} 57. Kxf4 {[%emt 0:1:7]} Qf5+ {[%emt 0:0:6]} 58. Ke3 {[%emt 0:2:29]} Qxf1 {[%emt 0:0:13]} 59. b7 {[%emt 0:0:5]} Qe1+ {[%emt 0:2:6]} 60. Kd4 {[%emt 0:1:18]} Qe4+ {[%emt 0:0:39]} 61. Kc5 {[%emt 0:0:14]} Qe7+ {[%emt 0:0:0]} 62. Kb6 {[%emt 0:0:0]} Qe3+ {[%emt 0:0:0]} 63. Kc7 {[%emt 0:0:0]} Qc5+ {[%emt 0:0:0]} 64. Kd8 {[%emt 0:0:0]} Qd6+ {[%emt 0:0:0]} 65. Ke8 {[%emt 0:0:0]} Qb8+ {[%emt 0:0:0]} 66. Kf7 {[%emt 0:0:0]} Ba2+ {[%emt 0:0:0]} 67. Qxa2 {[%emt 0:0:0]} Qg8+ {[%emt 0:0:0]} 68. Ke7 {[%emt 0:0:0]} Qxa2 {[%emt 0:0:0]} 69. b8=Q {[%emt 0:0:0]} Qe2+ {[%emt 0:0:0]} 70. Kf8 {[%emt 0:0:0]} Qxh5 {[%emt 0:0:0]} 71. Qb1+ {[%emt 0:9:10]} Qg6 {[%emt 0:12:50]} 72. Qf1 {[%emt 0:0:6]} h5 {[%emt 0:0:43]} 73. Qf2 {[%emt 0:3:37]} Qe4 {[%emt 0:0:53]} 74. Kf7 {[%emt 0:6:35]} h4 {[%emt 0:0:43]} 75. Qd2 {[%emt 0:1:18]} Qf5+ {[%emt 0:0:46]} 76. Ke8 {[%emt 0:0:10]} Kg6 {[%emt 0:2:32]} 77. Qd6+ {[%emt 0:0:4]} Kh5 {[%emt 0:1:19]} 78. Qd1+ {[%emt 0:1:11]} Kh6 {[%emt 0:0:14]} 79. Qd2+ {[%emt 0:1:9]} g5 {[%emt 0:0:6]} 80. Qd4 {[%emt 0:1:16]} Kh5 {[%emt 0:1:37]} 81. Ke7 {[%emt 0:0:35]} g4 {[%emt 0:1:44]} 82. Kd6 {[%emt 0:0:41]} Kg5 {[%emt 0:0:12]} 83. Qg1 {[%emt 0:0:29]} Qd3+ {[%emt 0:0:41]} 84. Ke5 {[%emt 0:0:21]} Qe2+ {[%emt 0:0:15]} 85. Kd4 {[%emt 0:0:16]} Qd2+ {[%emt 0:2:36]} 86. Ke4 {[%emt 0:0:1]} Qf4+ {[%emt 0:0:46]} 87. Kd3 {[%emt 0:0:1]} Qf5+ {[%emt 0:0:18]} 88. Kd2 {[%emt 0:1:2]} Qd5+ {[%emt 0:0:7]} 89. Ke2 {[%emt 0:0:21]} Qa2+ {[%emt 0:0:46]} 90. Kd3 {[%emt 0:0:5]} Qb3+ {[%emt 0:0:5]} 91. Kd2 {[%emt 0:0:11]} Qb2+ {[%emt 0:0:56]} 92. Kd3 {[%emt 0:0:3]} Qa3+ {[%emt 0:0:15]} 93. Ke2 {[%emt 0:0:30]} h3 {[%emt 0:0:47]} 94. gxh3 {[%emt 0:0:9]} Qxh3 {[%emt 0:0:46]} 95. Qf2 {[%emt 0:2:11]} Qh7 {[%emt 0:0:35]} 96. Qg3 {[%emt 0:0:38]} Qf5 {[%emt 0:0:31]} 97. Ke1 {[%emt 0:0:4]} Qf6 {[%emt 0:0:32]} 98. Ke2 {[%emt 0:0:6]} Kh5 {[%emt 0:0:12]} 99. Ke1 {[%emt 0:0:13]} Kg5 {[%emt 0:0:35]} 100. Ke2 {[%emt 0:0:4]} Qf4 {[%emt 0:0:25]} 101. Qxf4+ {[%emt 0:0:5]} Kxf4 {[%emt 0:0:2]} 102. Kf2 {[%emt 0:0:4]} g3+ {[%emt 0:0:3]} 103. Kg2 {[%emt 0:0:2]} Kg4 {[%emt 0:0:2]} 104. Kg1 {[%emt 0:0:4]} Kh3 {[%emt 0:0:4]} 105. Kh1 {[%emt 0:0:3]} g2+ {[%emt 0:0:3]} 106. Kg1 {[%emt 0:0:2]} Kg3 {[%emt 0:0:3]} 1/2-1/2

[Event "85th Tata Steel Masters 2023"]
[White "Praggnanandhaa R"]
[Black "Van Foreest,Jorden"]
[Site "Wijk aan Zee"]
[Round "7.4"]
[Annotator "TA"]
[Result "1-0"]
[Date "2023.01.21"]
[WhiteElo "2684"]
[BlackElo "2681"]
[PlyCount "127"]
[TimeControl "60"]

{[%evp 9,127,27,29,18,18,11,27,17,18,18,29,30,27,12,38,35,24,20,41,35,27,25,114,110,131,127,144,110,114,106,167,147,140,132,165,158,166,116,148,156,167,152,156,147,242,196,205,199,183,158,164,143,139,106,116,111,126,120,120,126,133,131,127,114,154,150,158,158,158,150,189,153,192,198,206,210,208,202,226,222,213,206,245,242,358,351,393,370,420,420,411,401,464,447,490,472,503,480,443,481,817,773,1707,954,1079,1062,976,976,841,802,1327,1224,1517,1448,1326,1310,1664,1589,1404,1257]} 1. d4 {[%emt 0:0:40]} d5 {[%emt 0:0:9]} 2. c4 {[%emt 0:0:5]} c6 {[%emt 0:0:12]} 3. Nf3 {[%emt 0:0:5]} Nf6 {[%emt 0:0:8]} 4. e3 {[%emt 0:0:19]} Bf5 {[%emt 0:0:9]} 5. Nc3 {[%emt 0:0:8]} a6 {[%emt 0:0:6]} 6. Bd2 {[%emt 0:1:23] D15: Slav Defence: 4 Nc3 a6 and gambit lines after 4 Nc3 dxc4.} e6 {[%emt 0:6:8]} 7. Qb3 {[%emt 0:0:48]} b5 {[%emt 0:1:38]} 8. c5 {[%emt 0:1:30] White has an edge.} Nbd7 {[%emt 0:4:54]} 9. a4 {[%emt 0:2:33] [#]} e5 $146 {[%emt 0:16:54]} ({Predecessor:} 9... Be7 10. Be2 Ne4 11. axb5 axb5 12. Rxa8 Qxa8 13. Nxb5 Qa1+ 14. Bd1 Ndxc5 15. dxc5 Nxc5 {0-1 Sarkar,J (2360)-Checa,N (2574) Dulles Cherry Blossom op 2021 (5)} )10. Qa3 {[%emt 0:13:25][%cal Ra4b5] aiming for axb5.} (10. Nxe5 Nxe5 11. dxe5 Nd7 $15 )b4 {[%emt 0:13:57]} 11. Qxb4 {[%emt 0:0:28] Black must now prevent Qb7.} Rb8 {[%emt 0:1:24] Dodges Qb7} (11... a5 $5 {[%cal Ra5b4]} 12. Qb7 Rc8 $14 )12. Qa3 {[%emt 0:1:13]} a5 {[%emt 0:0:23]} 13. Be2 {[%emt 0:12:50]} (13. dxe5 Bxc5 14. Qa2 Ne4 15. Nxe4 Bxe4 $15 )(13. Nxe5 Nxe5 14. dxe5 Nd7 $15 )Be7 {[%emt 0:4:27]} 14. O-O {[%emt 0:7:1][%cal Yc3b5]} (14. Nxe5 Nxe5 15. dxe5 Nd7 $17 )O-O {[%emt 0:1:6]} 15. Rfd1 {[%emt 0:13:54]} (15. Nxe5 Nxe5 16. dxe5 Nd7 $15 )e4 {[%emt 0:5:54] [#]} (15... Re8 $11 )16. Ne1 $1 $16 {[%emt 0:2:25]} Bg4 {[%emt 0:0:31]} 17. Rdb1 {[%emt 0:4:28]} Qc7 {[%emt 0:5:40]} 18. h3 {[%emt 0:3:28]} Bxe2 {[%emt 0:3:45]} 19. Nxe2 {[%emt 0:0:20]} Qa7 {[%emt 0:0:53]} (19... Ra8 $16 20. Nc2 Rfb8 )20. b4 {[%emt 0:7:56]} axb4 {[%emt 0:0:6]} 21. Rxb4 {[%emt 0:0:51]} Qa6 {[%emt 0:2:18]} 22. Rxb8 {[%emt 0:2:42]} Rxb8 {[%emt 0:0:6]} 23. Nc1 {[%emt 0:1:38]} ({White should try} 23. Nc3 $18 )Ne8 {[%emt 0:11:2]} 24. Nc2 {[%emt 0:3:35]} Nc7 {[%emt 0:0:35]} 25. a5 {[%emt 0:7:13]} Ra8 {[%emt 0:5:26]} 26. Rb1 {[%emt 0:5:13]} Qc4 {[%emt 0:2:12]} (26... Qc8 $16 27. Nb4 Nb5 )27. Qb3 {[%emt 0:6:7]} Qxb3 {[%emt 0:1:40]} 28. Rxb3 {[%emt 0:0:10]} (28. Nxb3 f5 29. g3 (29. Nb4 Nb8 $16 )g6 )Bd8 {[%emt 0:0:27]} 29. Be1 {[%emt 0:4:11]} Kf8 {[%emt 0:3:47]} 30. Rb7 {[%emt 0:2:18]} Ke8 {[%emt 0:1:49]} 31. Nb4 {[%emt 0:2:14]} Nb8 {[%emt 0:1:5]} 32. f3 {[%emt 0:1:34]} exf3 {[%emt 0:0:37]} 33. gxf3 {[%emt 0:0:11]} Kd7 {[%emt 0:0:6]} 34. Nc2 $36 {[%emt 0:2:36][%mdl 2048] White is on the roll. White is much more active. The black rooks are badly placed.} Kc8 {[%emt 0:0:7]} 35. Rb1 {[%emt 0:0:8]} Ne6 {[%emt 0:0:54]} 36. Kg2 {[%emt 0:1:9]} f5 {[%emt 0:4:54]} 37. Nd3 {[%emt 0:1:2]} Bc7 {[%emt 0:0:6]} 38. h4 {[%emt 0:0:37]} Ra7 {[%emt 0:1:11]} 39. Ra1 {[%emt 0:0:44]} Nd8 {[%emt 0:0:7]} 40. Nc1 {[%emt 0:0:35]} h6 {[%emt 0:3:51]} 41. f4 {[%emt 0:21:14]} h5 {[%emt 0:4:46]} 42. Kf3 {[%emt 0:1:16]} Na6 {[%emt 0:8:29]} 43. Nd3 {[%emt 0:3:8]} Rb7 {[%emt 0:2:18]} 44. Bd2 {[%emt 0:5:21]} Ne6 {[%emt 0:1:7]} 45. Ke2 {[%emt 0:0:58]} Bd8 {[%emt 0:9:9]} 46. Ne5 {[%emt 0:5:20]} Kc7 {[%emt 0:0:25] [#]} (46... Rc7 $142 47. Ne1 Bf6 )47. Nb4 $1 $18 {[%emt 0:2:14][%mdl 512]} Nb8 {[%emt 0:6:16]} (47... Nxb4 48. a6 )48. Nf7 {[%emt 0:2:19]} (48. a6 Ra7 49. Be1 Be7 $18 )Be7 {[%emt 0:2:31]} 49. Rg1 {[%emt 0:1:31]} (49. a6 Ra7 50. Be1 Nd8 $18 )Nd7 {[%emt 0:7:57]} 50. Ne5 {[%emt 0:1:48]} Nxe5 {[%emt 0:0:35]} 51. fxe5 {[%emt 0:0:10] White is clearly winning.} Kd7 {[%emt 0:3:7]} 52. Rg6 {[%emt 0:1:18][%cal Yb4c6] Threatens to win with Nxc6!} Rc7 {[%emt 0:0:13]} 53. Be1 {[%emt 0:1:10]} f4 {[%emt 0:3:36]} 54. a6 {[%emt 0:2:6][%cal Ya5a6,Ya6a7][%mdl 32]} Rc8 {[%emt 0:4:21]} (54... Bf8 $142 55. Bf2 fxe3 56. Kxe3 (56. Bxe3 Be7 $18 )Be7 )55. a7 {[%emt 0:1:10]} fxe3 {[%emt 0:1:30]} 56. Kxe3 {[%emt 0:0:17][%cal Yg6e6] Hoping for Rxe6!} Nd8 {[%emt 0:0:10]} 57. Na6 {[%emt 0:3:17] And now Nb8+ would win.} Ra8 {[%emt 0:0:7]} 58. Ba5 {[%emt 0:0:25]} ({Less strong is} 58. Rxg7 Rxa7 59. Nb4 Ra3+ 60. Nd3 Ne6 $11 )Rxa7 {[%emt 0:0:21]} 59. Nb8+ {[%emt 0:0:6]} Ke8 {[%emt 0:0:44]} 60. Bxd8 {[%emt 0:0:23][%mdl 64] Remove Defender} (60. Nxc6 $2 {loses.} Nxc6 61. Bc3 Ra6 62. Rxg7 Ra3 $19 )Bxd8 {[%emt 0:0:5]} 61. Nxc6 {[%emt 0:0:40]} Ra3+ {[%emt 0:1:5]} 62. Kf4 {[%emt 0:0:29]} Bxh4 {[%emt 0:0:3]} 63. Rxg7 {[%emt 0:0:20]} Ra6 {[%emt 0:0:50]} 64. Rc7 {[%emt 0:0:57] Weighted Error Value: White=0.08 (flawless) /Black=0.22 (precise)} 1-0

[Event "85th Tata Steel Masters 2023"]
[White "Gukesh D"]
[Black "So,Wesley"]
[Site "Wijk aan Zee"]
[Round "7.5"]
[Annotator "TA"]
[Result "0-1"]
[Date "2023.01.21"]
[WhiteElo "2725"]
[BlackElo "2760"]
[PlyCount "68"]
[TimeControl "60"]

{[%evp 9,68,10,5,14,25,33,22,28,31,17,19,19,27,16,22,17,21,17,21,6,31,0,16,0,27,-21,22,27,31,38,64,72,77,85,150,81,74,43,36,21,12,0,0,0,27,0,0,-101,-107,-110,-109,-168,-175,-161,-170,-329,-333,-312,-230,-559,-560]} 1. e4 {[%emt 0:0:29]} e5 {[%emt 0:0:38]} 2. Nf3 {[%emt 0:0:7]} Nc6 {[%emt 0:0:7]} 3. Bb5 {[%emt 0:0:37]} Nf6 {[%emt 0:3:7]} 4. d3 {[%emt 0:0:33]} Bc5 {[%emt 0:0:7]} 5. c3 {[%emt 0:1:12]} O-O {[%emt 0:0:24]} 6. O-O {[%emt 0:0:9] C65: Ruy Lopez: Berlin Defence (3...Nf6), unusual lines and 4 0-0 Bc5.} d5 {[%emt 0:0:12]} 7. exd5 {[%emt 0:2:2]} Qxd5 {[%emt 0:0:4][%cal Yc5f2]} 8. Bc4 {[%emt 0:0:7] The position is equal.} Qd8 {[%emt 0:0:7]} 9. b4 {[%emt 0:14:43]} Bd6 {[%emt 0:0:34]} 10. Nbd2 {[%emt 0:0:35]} h6 {[%emt 0:2:45]} 11. Re1 {[%emt 0:2:29]} Re8 {[%emt 0:3:20]} 12. a4 {[%emt 0:3:41]} a6 {[%emt 0:1:0]} 13. Qc2 {[%emt 0:2:36]} Be6 {[%emt 0:9:44] [#]} 14. Bb2 $146 {[%emt 0:1:41]} ({Predecessor:} 14. Bxe6 Rxe6 15. Ne4 Qd7 16. Be3 Rae8 17. h3 Ne7 18. a5 Ng6 19. Qa4 c6 20. Rad1 {½-½ Baroin,B (2320)-Antal,J (2337) EU-ch 2020 sf14 email} )Qd7 {[%emt 0:6:49]} 15. Re2 {[%emt 0:19:23]} Bf5 {[%emt 0:16:8]} 16. Rae1 {[%emt 0:4:4]} Re7 {[%emt 0:0:57]} 17. h3 {[%emt 0:4:8]} (17. Ne4 $142 )Rae8 {[%emt 0:3:40][%cal Yf5h3]} (17... Nh5 $5 {[%cal Rh5f4]} )18. Ne4 {[%emt 0:2:15]} Nh5 {[%emt 0:11:40]} 19. Bc1 {[%emt 0:1:59]} Kh8 {[%emt 0:0:39]} 20. Nh4 {[%emt 0:15:57]} Be6 {[%emt 0:1:49]} 21. Qd1 {[%emt 0:9:37]} Qd8 {[%emt 0:7:2] [#]} (21... Nf4 $142 )22. b5 {[%emt 0:2:45]} (22. g3 $142 $1 )Na5 $16 {[%emt 0:2:17]} 23. Bxe6 {[%emt 0:7:41]} Rxe6 {[%emt 0:0:3]} 24. Nf5 {[%emt 0:0:11]} Bf8 $1 {[%emt 0:3:4]} 25. Qc2 {[%emt 0:9:25]} (25. Be3 {looks sharper.} Kh7 26. g4 Nf6 27. Rd2 )axb5 {[%emt 0:4:25]} 26. axb5 {[%emt 0:0:2]} b6 {[%emt 0:0:8]} 27. d4 {[%emt 0:2:40]} Nf4 {[%emt 0:4:7]} 28. Rd2 {[%emt 0:1:21]} (28. Bxf4 $11 exf4 29. Qd2 )Qd5 $17 {[%emt 0:4:31] [#] Hoping for ...exd4.} 29. Ne3 {[%emt 0:1:27]} Qxb5 {[%emt 0:0:13] Strongly threatening ...exd4. Black is more active.} 30. d5 {[%emt 0:0:26]} (30. Ng3 $17 )Rg6 $19 {[%emt 0:0:32][%cal Ya5c4] White must now prevent ...Nc4!} 31. Ng3 {[%emt 0:1:2]} Bc5 {[%emt 0:9:40]} 32. Qe4 $2 {[%emt 0:0:1]} (32. Nef5 )Bxe3 {[%emt 0:5:12]} 33. fxe3 {[%emt 0:0:33]} Nc4 {[%emt 0:2:15]} (33... Rxg3 $2 {perishes.} 34. exf4 Rxc3 35. Rdd1 $19 )34. Rf2 {[%emt 0:0:58]} (34. exf4 {was the crucial defense.} Rxg3 35. Rdd1 )Nd6 {[%emt 0:1:25] Weighted Error Value: White=0.42/Black=0.14 (very precise)} 0-1